Cogmind - Beta 11.1 @@@ ROGUE MODE // 2022.08.27 @ 17:57:38 Player: ILikeVoltron Result: Self-destructed Performance ------------- Evolutions (3) 1500 Regions Visited (4) 800 Robots Destroyed (51) 255 Value Destroyed (1407) 1407 Prototype IDs (3) 60 Alien Tech Used (0) 0 Bonus (11) 11 TOTAL SCORE: 4033 Bonus ------- High Alert Combat Kills 11 Cogmind --------- Core Integrity 543/700 Matter 198/300 Energy 56/100 System Corruption 0% Temperature Cool (0) Movement Core (50) Location -7/Factory Parts ------- > --- POWER (1) -------- (None) > --- PROPULSION (5) --- (None) > --- UTILITY (5) ------ (None) > --- WEAPON (2) ------- (None) > --- INVENTORY (5) ---- Small Storage Unit Seismic Detector Enhanced Autogun Mini Assault Cannon Mining Claw Peak State ------------ > --- POWER ------------ Light Angular Momentum Engine > --- PROPULSION ------- Light Treads Aluminum Leg Aluminum Leg > --- UTILITY ---------- Small Storage Unit Signal Interpreter Advanced Targeting Computer Light Armor Plating Shock Absorption System > --- WEAPON ----------- Enhanced Autogun Mini Assault Cannon > --- INVENTORY -------- Light Deuterium Engine Light Nuclear Core Large Matter Pod Structural Scanner Improved Terrain Scanner Enhanced Autogun Enhanced Autogun Mining Claw [Rating: 29] Favorites ----------- Power Light Deuterium Engine Engine Light Deuterium Engine Propulsion Aluminum Leg Treads Light Treads Leg Aluminum Leg Flight Unit VTOL Module Utility Small Storage Unit Device Hardlight Generator Storage Small Storage Unit Processor Signal Interpreter Protection Light Armor Plating Weapon Enhanced Autogun Energy Gun Medium Laser Energy Cannon Particle Cannon Ballistic Gun Enhanced Autogun Ballistic Cannon Mini Assault Cannon Slashing Weapon Mining Claw Build | -11 -10 -9 -8 -7 ------- Run | Scr Mat Mat Mat Fac Slots Evolved 6 | . . 2 2 2 Power . | . . . . . Propulsion 3 | . . 1 . 2 Utility 3 | . . 1 2 . Weapon . | . . . . . Parts Attached 73 | . 8 8 47 10 Power 6 | . 2 . 4 . Engine 6 | . 2 . 4 . Core . | . . . . . Reactor . | . . . . . Propulsion 23 | . 3 5 13 2 Treads 4 | . . . 2 2 Leg 16 | . 1 4 11 . Wheel . | . . . . . Hover . | . . . . . Flight 3 | . 2 1 . . Utility 23 | . 2 2 14 5 Device 13 | . 1 1 7 4 Storage 1 | . . . . 1 Processor 5 | . 1 1 3 . Hackware . | . . . . . Protection 4 | . . . 4 . Artifact . | . . . . . Weapon 21 | . 1 1 16 3 Energy Gun 6 | . 1 . 3 2 Energy Cannon 1 | . . 1 . . Ballistic Gun 9 | . . . 9 . Ballistic Cannon 1 | . . . . 1 Launcher . | . . . . . Special Weapon . | . . . . . Impact Weapon . | . . . . . Slashing Weapon 4 | . . . 4 . Piercing Weapon . | . . . . . Special Melee Weapon . | . . . . . Unidentified Prototypes 3 | . 1 . 1 1 Corrupted Parts 1 | . . 1 . . System Corruption 4 | . . 4 . . Parts Lost 19 | . 1 3 9 6 Power 2 | . 1 . . 1 Propulsion 5 | . . 2 2 1 Utility 8 | . . . 4 4 Weapon 4 | . . 1 3 . Highest Loss Streak 4 | . 1 2 3 4 To Critical Strikes . | . . . . . Average Slot Usage (%) 94 | . 98 92 98 77 Engine 9 | . 14 11 8 6 Treads 2 | . . . . 15 Leg 22 | . 23 26 25 9 Flight 1 | . 3 4 . . Device 9 | . 5 4 13 5 Storage 10 | . 14 11 9 7 Processor 13 | . 7 15 15 13 Protection 3 | . . . 7 2 Energy Gun 6 | . 15 16 1 . Ballistic Gun 10 | . 12 . 13 7 Slashing Weapon 1 | . . . 2 . Naked Turns 4 | . . . . 4 Heaviest Build 101 | 12 18 21 31 101 Greatest Support 60 | 20 20 30 33 60 Greatest Overweight (x) 4 | . 4 1 2 2 Average Overweight (x) . | . . . . . Largest Inventory Capacity 25 | . 8 8 8 25 Average Capacity 8 | . 8 8 8 13 Most Carried 12 | . 8 8 8 12 Average Carried 7 | . 7 7 7 8 Final Capacity 8 | 8 8 8 8 5 Final Carried 8 | 6 8 8 8 5 Class Distribution -------------------- 58% | Scavenger-Mutant 41% | Mutant Dominant Class ---------------- Mutant | -10/Materials Mutant | -9/Materials Scavenger-Mutant | -8/Materials Scavenger-Mutant | -7/Factory Resources | -11 -10 -9 -8 -7 ----------- Run | Scr Mat Mat Mat Fac Matter Collected 1706 | 200 277 86 969 174 Remotely . | . . . . . Salvage Created 2027 | . 461 355 1053 158 Parts 122 | . 29 20 70 3 Haulers Intercepted 2 | . . . 1 1 Recyclers Shooed 2 | . . . 2 . Parts Field Recycled . | . . . . . Retrieved Matter . | . . . . . Parts Self-Destructed . | . . . . . Prevented . | . . . . . Kills | -11 -10 -9 -8 -7 ------- Run | Scr Mat Mat Mat Fac Combat Hostiles Destroyed 40 | . 9 9 21 1 Melee 1 | . . . 1 . Guns 35 | . 9 7 19 . Cannons 3 | . . 1 1 1 AOE 1 | . . 1 . . Classes Destroyed 10 | . 5 1 4 . Worker 2 | . 1 . 1 . Builder 1 | . . . 1 . Tunneler 1 | . . . 1 . Hauler 2 | . . . 1 1 Recycler 2 | . 1 . . 1 Watcher 3 | . 2 . 1 . Swarmer 12 | . 3 3 6 . Grunt 18 | . 6 5 7 . Duelist 1 | . . . 1 . Sentry 9 | . . 1 7 1 Best Kill Streak 7 | . 6 7 5 2 Combat Bots Only 7 | . 4 7 4 1 Max Kills in Single Turn 2 | . 1 1 2 1 Gunslinging . | . . . . . Exploded 1 | . . 1 . . Melee 1 | . . . 1 . Uniques/NPCs Destroyed . | . . . . . Combat | -11 -10 -9 -8 -7 -------- Run | Scr Mat Mat Mat Fac Damage Taken 3082 | . 399 401 1673 609 Core 585 | . 110 62 256 157 Absorbed by Shields 8 | . . . 8 . Core Remaining (%) 73 | 100 56 84 53 . Volleys Fired 172 | . 39 27 92 14 Largest 2 | . 2 2 2 2 Hottest 133 | . 95 113 133 124 Shots Fired 311 | . 78 37 172 24 Gun 296 | . 78 36 167 15 Cannon 15 | . . 1 5 9 Launcher . | . . . . . Special . | . . . . . Kinetic 208 | . 34 . 153 21 Thermal 60 | . 39 10 10 1 Explosive . | . . . . . Electromagnetic 43 | . 5 27 9 2 Robot Hit Streak 13 | . 8 5 13 6 Robot Miss Streak 5 | . 5 2 4 5 Penetration Max . | . . . . . Secondary Targets 5 | . 2 1 2 . Max Gunslinging Chain 1 | . 1 1 1 . Shots Hit Robots 198 | . 46 25 115 12 Core Hits 85 | . 20 13 48 4 Critical Kills . | . . . . . Critical Parts Destroyed . | . . . . . Critical Strikes 5 | . 3 2 . . Burn 2 | . 2 . . . Corrupt 3 | . 1 2 . . Melee Attacks 8 | . . . 8 . Impact . | . . . . . Slashing 8 | . . . 8 . Piercing . | . . . . . Sneak Attacks 1 | . . . 1 . Combat Hostiles . | . . . . . Follow-up Attacks . | . . . . . Damage Inflicted 3002 | . 613 413 1720 256 Guns 2694 | . 613 362 1619 100 Cannons 197 | . . 21 20 156 Explosions 30 | . . 30 . . Melee 76 | . . . 76 . Ramming 5 | . . . 5 . Kinetic 2097 | . 313 . 1528 256 Thermal 403 | . 238 102 63 . Explosive . | . . . . . Electromagnetic 421 | . 62 311 48 . Impact . | . . . . . Slashing 76 | . . . 76 . Piercing . | . . . . . Highest Corruption 4 | . . 4 . . Average Corruption 4 | . . 4 . . Corruption Purged . | . . . . . Corruption Blocked . | . . . . . Effects 2 | . . 2 . . Matter Fused 2 | . . 2 . . Overload Shots . | . . . . . Overflow Damage 21 | . . 9 12 . Projectiles . | . . . . . Explosions 9 | . . 9 . . Melee 12 | . . . 12 . Knockbacks . | . . . . . Impact . | . . . . . Kinetic . | . . . . . Secondary . | . . . . . Self-Inflicted Damage 12 | . . 12 . . Shots 1 | . . 1 . . Rammed . | . . . . . Targets Rammed 1 | . . . 1 . Kicked 1 | . . . 1 . Crushed . | . . . . . Highest Temperature 430 | . 234 295 430 73 Average Temperature 92 | . 76 100 118 24 Received Heat Transfer 1123 | . 210 186 652 75 Effects 8 | . . 1 7 . Shutdowns 1 | . . . 1 . Energy Bleed 1 | . . . 1 . Interference 2 | . . 1 1 . Matter Decay 2 | . . . 2 . Short Circuit 1 | . . . 1 . Damage (minor) 1 | . . . 1 . Siege Activations . | . . . . . Robots Corrupted . | . . . . . Combat Hostiles . | . . . . . Parts Fried 1 | . 1 . . . Impact Corruptions . | . . . . . Robots Melted . | . . . . . Combat Hostiles . | . . . . . Parts Melted 1 | . . . 1 . Heat Transferred 1234 | . 851 235 148 . Parts Sabotaged . | . . . . . Parts Stolen . | . . . . . Parts Stripped . | . . . . . Power Chain Reactions 1 | . . 1 . . Missiles Intercepted . | . . . . . Alert | -11 -10 -9 -8 -7 ------- Run | Scr Mat Mat Mat Fac Peak Influence 436 | . 327 315 436 219 Initial 167 | . . 56 132 167 Average 217 | . 164 185 260 192 Maximum Alert Level 2 | . 1 1 2 1 Low Security (%) 38 | . 54 46 17 73 Level 1 58 | . 45 53 76 26 Level 2 2 | . . . 5 . Level 3 . | . . . . . Level 4 . | . . . . . Level 5 . | . . . . . High Security . | . . . . . Max Security . | . . . . . Squads Dispatched 8 | . 3 2 1 2 Investigation 3 | . 1 1 1 . Extermination . | . . . . . Reinforcement 5 | . 2 1 . 2 Assault . | . . . . . Garrison . | . . . . . Intercept . | . . . . . Searches Triggered . | . . . . . Construction Impeded . | . . . . . Haulers Reinforced . | . . . . . Active Scanning Responses . | . . . . . Cargo Convoy Interrupts . | . . . . . Stealth | -11 -10 -9 -8 -7 --------- Run | Scr Mat Mat Mat Fac Distress Signals 4 | . 2 . 2 . Communications Jammed . | . . . . . Distress Signals . | . . . . . Times Spotted 68 | . 16 15 28 9 Peak Tracking Total 6 | . 6 6 6 6 Tactical Retreats 2 | . . 1 1 . Traps | -11 -10 -9 -8 -7 ------- Run | Scr Mat Mat Mat Fac Traps Triggered 1 | . 1 . . . Indirectly . | . . . . . Trap Hack Attempts . | . . . . . Triggered . | . . . . . Disarmed . | . . . . . Reprogrammed . | . . . . . Reused . | . . . . . Traps Extracted . | . . . . . Installed . | . . . . . Triggered . | . . . . . Machines | -11 -10 -9 -8 -7 ---------- Run | Scr Mat Mat Mat Fac Machines Disabled 2 | . . . . 2 Max in Single Turn 1 | . . . . 1 Machines Sabotaged . | . . . . . Garrisons Compromised . | . . . . . Overloaded Fab Kills . | . . . . . Hacking | -11 -10 -9 -8 -7 --------- Run | Scr Mat Mat Mat Fac Machines Accessed 10 | . 2 3 5 . Terminals 8 | . 1 3 4 . Fabricators . | . . . . . Repair Stations . | . . . . . Recycling Units 1 | . 1 . . . Scanalyzers 1 | . . . 1 . Garrison Access . | . . . . . Total Hacks 23 | . 4 9 10 . Successful 14 | . 3 5 6 . Failed 9 | . 1 4 4 . Catastrophic 3 | . 1 2 . . Database Lockouts . | . . . . . Manual 6 | . . 2 4 . Terminals 19 | . 2 9 8 . Fabricators . | . . . . . Repair Stations . | . . . . . Recycling Units 2 | . 2 . . . Scanalyzers 2 | . . . 2 . Garrison Access . | . . . . . Terminal Hacks 8 | . 1 3 4 . Record 1 | . . 1 . . Part Schematic 3 | . . . 3 . Branch Access Points 1 | . 1 . . . Emergency Access Points 2 | . . 1 1 . Repair Station Index 1 | . . 1 . . Fabricator Hacks . | . . . . . Repair Station Hacks . | . . . . . Recycling Unit Hacks 2 | . 2 . . . Report Inventory 1 | . 1 . . . Retrieve Components 1 | . 1 . . . Scanalyzer 2 | . . . 2 . Insert Component 1 | . . . 1 . Analyze 1 | . . . 1 . Garrison Access Hacks . | . . . . . Unauthorized Hacks 2 | . . 2 . . Terminals 2 | . . 2 . . Track 1 | . . 1 . . Operators 1 | . . 1 . . Fabricators . | . . . . . Repair Stations . | . . . . . Recycling Units . | . . . . . Scanalyzers . | . . . . . Garrison Access . | . . . . . Data Cores Recovered . | . . . . . Used . | . . . . . Hacking Detections 4 | . . 2 2 . Full Trace Events 2 | . . 1 1 . Feedback Events . | . . . . . Feedback Blocked . | . . . . . Robot Schematics Acquired . | . . . . . Robots Built . | . . . . . Authchips . | . . . . . Time . | . . . . . Total Robot Build Rating . | . . . . . Part Schematics Acquired 4 | . . . 4 . Parts Built . | . . . . . Authchips . | . . . . . Time . | . . . . . Total Part Build Rating . | . . . . . Parts Repaired . | . . . . . Time . | . . . . . Parts Recycled . | . . . . . Recycled Matter . | . . . . . Retrieved Matter . | . . . . . Retrieved Components 10 | . 10 . . . Parts Scanalyzed 1 | . . . 1 . Part Schematics Acquired 1 | . . . 1 . Parts Damaged . | . . . . . Bothacking | -11 -10 -9 -8 -7 ------------ Run | Scr Mat Mat Mat Fac Used RIF Installer . | . . . . . Robots Hacked . | . . . . . Non-combat . | . . . . . Combat . | . . . . . Robot Hacks Applied . | . . . . . Relay Couplers Released . | . . . . . Fabnet Peak Effective % . | . . . . . Robots Rewired . | . . . . . Allies Hacked . | . . . . . Hacks Repelled . | . . . . . Allies | -11 -10 -9 -8 -7 -------- Run | Scr Mat Mat Mat Fac Total Allies . | . . . . . Largest Group . | . . . . . Highest-Rated Group . | . . . . . Highest-Rated Ally . | . . . . . Total Orders . | . . . . . Ally Attacks . | . . . . . Total Damage . | . . . . . Kills . | . . . . . Allies Corrupted . | . . . . . Allies Melted . | . . . . . Intel | -11 -10 -9 -8 -7 ------- Run | Scr Mat Mat Mat Fac Robot Analysis Total . | . . . . . Derelict Logs Recovered . | . . . . . Drone Launches . | . . . . . Drone Recoveries . | . . . . . Exploration | -11 -10 -9 -8 -7 ------------- Run | Scr Mat Mat Mat Fac Turns Passed 1858 | . 435 223 903 297 Spaces Moved 861 | 1 221 120 391 128 Core 9 | . . . . 9 Treads 88 | . . . 19 69 Legs 742 | 1 199 120 372 50 Wheels . | . . . . . Hover . | . . . . . Flight 22 | . 22 . . . Fastest Speed 50 | 120 120 120 120 50 Average Speed 137 | 120 127 121 130 188 Slowest Speed 355 | 120 355 190 260 320 Overloaded Moves . | . . . . . Propulsion Burnouts . | . . . . . Robots Hopped . | . . . . . Cave-ins Triggered . | . . . . . Exploration Rate (%) 21 | 2 44 16 42 4 Regions Visited 4 Branch Regions . Pre-discovered Areas . | . . . . . Known Exits Taken 2 | . . 1 1 . Unknown Exits Taken 2 | 1 1 . . . Scrap Searched . | . . . . . Spaces Dug 3 | . . . 3 . Terrain Destroyed 7 | . . 4 3 . Melee 3 | . . . 3 . Projectile . | . . . . . AOE 4 | . . 4 . . Terrain Rammed . | . . . . . Walls Destroyed . | . . . . . Machines Disabled . | . . . . . Actions | -11 -10 -9 -8 -7 --------- Run | Scr Mat Mat Mat Fac Total 1261 | . 300 159 641 161 Wait 75 | . 15 . 57 3 Move 857 | . 220 119 390 128 Hop . | . . . . . Pick Up 25 | . 7 3 13 2 Fast Attach 36 | . 6 3 19 8 Attach 13 | . 1 4 8 . Detach 12 | . 1 2 6 3 Swap 24 | . 1 1 20 2 Drop 38 | . 10 . 27 1 Fire 172 | . 39 27 92 14 Melee 8 | . . . 8 . Ram . | . . . . . Kick 1 | . . . 1 . Crush . | . . . . . Escape Stasis . | . . . . . Rewire . | . . . . . Trap . | . . . . . Miscellaneous . | . . . . . Route ------- -11/Scrapyard -10/Materials (discovered 2 exits: *Mat / *Min) -9/Materials -8/Materials -7/Factory History --------- Turn | Location | Event 1 | -11/Scrapyard | Discovered new exit (range 0) 1 | -11/Scrapyard | Entered Materials 164 | -10/Materials | Discovered new exit (range 7) 318 | -10/Materials | Build established: Mutant 360 | -10/Materials | Discovered new exit (range 18) 409 | -10/Materials | Identified exit to Mines 436 | -10/Materials | Entered another Materials area 436 | -9/Materials | Evolved 2 slots: Propulsion x1, Utility x1 567 | -9/Materials | Destroyed 7 combat bots 656 | -9/Materials | Discovered new exit (range 4) 658 | -9/Materials | Identified exit to Materials 659 | -9/Materials | Entered another Materials area 659 | -8/Materials | Evolved 2 slots: Utility x2 900 | -8/Materials | Build established: Scavenger-Mutant 983 | -8/Materials | Lost 3 parts (1n1u1w) 1466 | -8/Materials | Discovered new exit (range 7) 1560 | -8/Materials | Identified exit to Factory 1562 | -8/Materials | Entered Factory 1562 | -7/Factory | Evolved 2 slots: Propulsion x2 1694 | -7/Factory | Lost 4 parts (1n3u) 1855 | -7/Factory | Released all parts (4) 1859 | -7/Factory | Self-destructed Last Messages --------------- 01843_ U-05 Engineer builds a Wall. 01843_ Hvy. Laser severed. 01844_ U-05 Engineer lays Concrete. 01846_ Lgt. Treads severed. 01847_ U-05 Engineer lays Concrete. 01848_ Lightning Gun severed. 01848_ U-05 Engineer lays Concrete. 01850_ U-05 Engineer builds a Wall. 01850_ U-05 Engineer builds a Door. 01851_ U-05 Engineer builds a Wall. 01851_ U-05 Engineer lays Concrete. 01852_ Lgt. Treads severed. 01853_ U-05 Engineer lays Concrete. 01854_ U-05 Engineer builds a Wall. 01854_ Particle Charger destroyed. 01855_ Released Adv. Targeting Computer. 01855_ Released Lgt. Treads. 01855_ Released Huge Storage Unit. 01855_ Released Seismic Detector. 01856_ U-05 Engineer builds a Wall. Map ----- +----------------------------------------------------+ | ??????????????????????????????????+ #????? | | ??????????????????????????????????# #????? | | ??????????????????????????????????# #????? | | ??????????????????????????????????# #????? | | ????????????????????############### #????? | | ????????????????????# #????? | | ????????????????????# #????? | | ????????????????????# #????? | | ???????############## #????? | | ???????# # #????? | | ???????# # t#####+### #????? | | ???????# """""" # ## # #????? | | ???????# """"""" # ## """ #######????? | | ???????# """"""" # ## """ #??????????? | | ???????# /" """"" / ^## """ #??????????? | | ???????# / / # ## #??????????? | | ???????# !""""""" # ##] #??????????? | | ???????# """"""" ##### ## ! #??????????? | | ???????# %""""""" #???# ## #??????????? | | ???????# % """"""" #???# + !#??????????? | | ???????# #???# ## /!#??????????? | | ???????################## ## #??????????? | | ??????????????# ## ## #??????????? | | ??????????????# ## ## #??????????? | | ??????????????# ## ## #??????????? | | ??????????????# ##@############???????? | | ??????????????# # kc# | #???????? | | ??????????????# + c + """ #???????? | | ??????????????# # k # """ #???????? | | ??????????????# ## ## ! *""" #???????? | | ??????????????# ##k##!!! [![ #???????? | | ??????????????########### ##!!!!!=! #???????? | | ????????????????????????# ## *=[ #???????? | | ???????????????????????? ## ![= #???????? | | ???????????????????????? ##########+#???????? | | ???????????????????? = #???????? | | ???????????????????? g ##??????? | | ???????????????????? ^ ?????? | | ????????????????????? """% """" #????? | | ???????????????????????""" """" #????? | | ???????????????????????"?" """" #????? | | ?????????????????????????? #????? | | ?????????????????????????? """" #????? | | ???????????????????????????"""" #????? | | ????????????????????????????""" #????? | | ????????????????????????????? +????? | | ????????????????????????????? #????? | | ????????????????????????????? #????? | | ?????????????????????????????##+#### #????? | | ????????????????????????????????????####?????? | +----------------------------------------------------+ Best States ------------- Heat Dissipation 53 Energy Generation 18 Energy Capacity 280 Matter Stores 300 Matter Capacity 300 Sight Range 20 Robot Scan Range 15 Terrain Scan Range 16 Terrain Scan Density 10 Armor Coverage 375 Resistance: EX 25 Evasion (%) 55 Targeting Accuracy 8 Melee Accuracy 5 Recoil Reduction 3 Particle Charging 15 Item Schematics ----------------- Lgt. Nuclear Core | -8/Materials | Scanalyzed Titanium Leg | -8/Materials | Hacked Med. Storage Unit | -8/Materials | Hacked Rocket Launcher | -8/Materials | Hacked Robot Schematics ------------------ None Fabricated ------------ Nothing Alien Tech Used ----------------- None Achievements -------------- None Challenges ------------ None Game ------ Seed MyomerGravitonClaymores Manual? 0 Play Time 00:32:40 Cumulative 65.6 hours Start 2022.08.27 @ 17:28:34 End 2022.08.27 @ 17:57:38 Sessions 1 Manual Loads 0 Difficulty Rogue Special Mode None Game No. 89 Rogue 85 Adventurer 0 Explorer 4 Win Type - Total 0 Types 0/0/0/0/0/0/0/0/0 Lore% 19 Gallery% 35 Achievement% 28 Wizard Run 0 Options --------- ASCII 0 Keyboard 1 Movement Arrows Keybinds 0 Fullscreen 2 Font 24/Crisp Map View 113x50 Tactical HUD 1 Map Filters NONE Filters NONE Steam 1 RUN: f8f768c1-39b0-4dc8-92da-c3a65fe6d0b3